bitfinex-derivatives/quotes_SOLF0:USTF0_20250823
["timestamp","ask_amount","ask_price","bid_price","bid_amount"]
[1755930023429,0.03660427,206.38,206.35,6.04115942]
[1755930023629,0.03660427,206.38,206.36,9.01931496]
[1755930023830,0.03660427,206.38,206.37,4.41449038]
[1755930024632,0.03660427,206.38,206.37,9.26219038]
[1755930027235,2.64,206.46,206.39,4.8471]
[1755930028842,2.64,206.46,206.4,0.03172961]
[1755930029543,7.4856,206.46,206.4,0.03172961]
[1755930029941,2.64,206.47,206.4,0.03172961]
[1755930030141,2.64,206.48,206.31,2.38082961]
[1755930030331,0.03279328,206.45,206.32,9.02954078]
[1755930030536,2.64,206.44,206.33,4.41959538]
[1755930030736,2.64,206.44,206.31,2.38082961]
[1755930030937,7.4872,206.4,206.32,9.03037637]
[1755930031138,2.64,206.4,206.33,13.87887637]
[1755930031339,2.64,206.4,206.34,4.42001253]
[1755930031639,2.64,206.4,206.33,4.8485]
[1755930031640,0.03215338,206.38,206.33,4.8485]
[1755930031839,0.03215338,206.38,206.34,4.48376542]
[1755930032040,0.03215338,206.38,206.33,4.8485]
[1755930032240,0.03215338,206.38,206.34,4.48470471]
[1755930032442,0.03215338,206.38,206.35,4.48470471]
[1755930032646,0.03215338,206.38,206.33,4.8485]
[1755930032839,0.03215338,206.38,206.34,4.48487774]
[1755930033042,0.03215338,206.38,206.35,4.48487774]
[1755930033336,0.03215338,206.38,206.36,4.48487774]
[1755930033541,0.03215338,206.38,206.33,4.8485]
[1755930033741,0.03215338,206.38,206.34,9.16239651]
[1755930033942,0.03215338,206.38,206.35,9.16239651]
[1755930034146,0.03215338,206.38,206.36,4.5475751]
[1755930034446,0.03215338,206.38,206.37,4.5475751]
[1755930035344,0.03215338,206.38,206.37,9.2048725]
[1755930037842,0.03215338,206.38,206.37,9.3952751]
[1755930038143,2.68,206.48,206.37,11.01565675]
[1755930038452,2.68,206.44,206.38,9.21430693]
[1755930038647,4.8458,206.45,206.34,4.8482]
[1755930038648,4.8458,206.45,206.39,9.43484594]
[1755930038848,2.68,206.43,206.4,9.43484594]
[1755930039044,2.68,206.43,206.34,2.5182]
[1755930039247,2.68,206.43,206.35,11.23901756]
[1755930039443,2.68,206.44,206.36,9.30233105]
[1755930039747,0.03397691,206.41,206.37,4.5577747]
[1755930039946,0.03397691,206.41,206.38,4.5577747]
[1755930040147,0.03397691,206.41,206.39,4.5577747]
[1755930040349,2.71397691,206.41,206.32,4.8488]
[1755930040548,2.71397691,206.41,206.33,6.36063344]
[1755930040747,2.71397691,206.41,206.34,6.36063344]
[1755930041046,2.68,206.39,206.35,4.55841222]
[1755930041248,2.68,206.39,206.36,4.55841222]
[1755930041447,2.68,206.39,206.25,6.04115942]
[1755930041648,2.68,206.39,206.26,6.36105556]
[1755930041847,2.68,206.39,206.27,6.36105556]
[1755930042051,0.03500669,206.34,206.28,6.36105556]
[1755930042250,2.71500669,206.34,206.29,6.36105556]
[1755930042451,2.71500669,206.34,206.3,4.55864843]
[1755930042652,2.71500669,206.34,206.31,4.55864843]
[1755930042851,2.71500669,206.34,206.32,4.55864843]
[1755930043047,2.71500669,206.34,206.33,4.55864843]
[1755930043447,2.71500669,206.34,206.33,2.05864843]
[1755930043848,0.03500669,206.34,206.33,2.05864843]
[1755930044152,0.03500669,206.34,206.27,4.85]
[1755930044451,0.03500669,206.34,206.28,1.80176999]
[1755930044750,2.68,206.33,206.21,130.12]
[1755930044951,2.68,206.33,206.22,1.80175762]
[1755930045152,2.68,206.33,206.23,1.80175762]
[1755930045354,2.68,206.33,206.24,1.80175762]
[1755930045555,2.71239587,206.3,206.25,1.80175762]
[1755930045753,0.03239587,206.3,206.21,141.01235942]
[1755930045954,0.03239587,206.3,206.22,1.80094847]
[1755930046158,0.03239587,206.3,206.23,1.80094847]
[1755930046353,0.03239587,206.3,206.24,1.80094847]
[1755930046557,0.03239587,206.3,206.25,1.80024775]
[1755930046757,0.03239587,206.3,206.23,4.8509]
[1755930047051,0.03239587,206.3,206.24,1.80022777]
[1755930047247,0.03239587,206.3,206.23,4.8509]
[1755930047248,0.03239587,206.3,206.25,1.80019766]
[1755930047454,0.03239587,206.3,206.26,1.80019766]
[1755930047655,0.03239587,206.3,206.27,1.80019766]
[1755930047850,0.03239587,206.3,206.28,1.80019766]
[1755930048053,0.03239587,206.3,206.25,6.04115942]
[1755930048255,0.03239587,206.3,206.26,1.79971332]
[1755930048449,0.03239587,206.3,206.27,1.79971332]
[1755930048655,0.03239587,206.3,206.28,1.79971332]
[1755930048856,0.03239587,206.3,206.27,4.85]
[1755930049057,0.03239587,206.3,206.28,1.79946572]
[1755930049250,0.03239587,206.3,206.27,4.85]
[1755930050059,0.03239587,206.3,206.22,6.04115942]
[1755930050260,0.03239587,206.3,206.23,1.12958454]
[1755930050561,2.68,206.41,206.24,4.04052959]
[1755930050760,2.68,206.41,206.33,6.04115942]
[1755930051454,2.68,206.41,206.34,4.79799011]
[1755930051656,2.68,206.41,206.35,4.79799011]
[1755930051856,2.68,206.41,206.36,4.79799011]
[1755930052056,2.68,206.48,206.37,10.83914953]
[1755930052259,2.68,206.48,206.38,4.79799011]
[1755930052467,2.68,206.48,206.41,10.88785942]
[1755930052656,2.68,206.48,206.42,4.79799011]
[1755930052961,2.68,206.48,206.41,6.07783639]
[1755930053156,2.68,206.48,206.42,4.79648306]
[1755930053356,2.68,206.48,206.41,6.07783639]
[1755930053553,2.68,206.48,206.42,4.79635932]
[1755930053756,2.68,206.48,206.41,6.07783639]
[1755930053958,2.68,206.48,206.42,4.7957187]
[1755930054156,2.68,206.48,206.41,6.07783639]
[1755930054759,2.68,206.48,206.41,0.03667697]
[1755930055568,4.8454,206.47,206.41,0.03667697]
[1755930056964,0.0353523,206.46,206.37,8.42543639]
[1755930057162,0.0353523,206.46,206.38,9.30734345]
[1755930057359,0.0353523,206.46,206.39,4.51202721]
[1755930057562,0.0353523,206.46,206.37,3.57783639]
[1755930057759,0.0353523,206.46,206.38,9.30709986]
[1755930058060,0.0353523,206.46,206.39,4.51190912]
[1755930058257,0.0353523,206.46,206.37,3.57783639]
[1755930058460,0.0353523,206.46,206.38,9.30653693]
[1755930058654,0.0353523,206.46,206.39,4.51163279]
[1755930058858,0.0353523,206.46,206.37,3.57783639]
[1755930059158,0.0353523,206.46,206.38,9.30692316]
[1755930059369,0.0353523,206.46,206.39,4.51182346]
[1755930059559,0.0353523,206.46,206.37,3.57783639]
[1755930059861,0.0353523,206.46,206.38,9.30697718]
[1755930060062,0.0353523,206.46,206.39,4.51185309]
[1755930060264,0.0353523,206.46,206.41,6.04115942]
[1755930060458,0.0353523,206.46,206.42,9.30661812]
[1755930060656,328.56,206.53,206.43,9.30661812]
[1755930060862,328.56,206.53,206.44,4.51171828]
[1755930061169,0.03090271,206.46,206.45,4.51171828]
[1755930061363,328.56,206.53,206.45,4.51171828]
[1755930061564,333.404,206.53,206.42,4.8465]
[1755930061763,0.03295776,206.48,206.43,9.36821262]
[1755930061967,0.03295776,206.48,206.44,4.57465965]
[1755930062168,0.03295776,206.48,206.42,4.8465]
[1755930062463,2.68,206.57,206.46,6.04115942]
[1755930062767,2.68,206.57,206.47,4.57380765]
[1755930062968,2.68,206.57,206.46,6.04115942]
[1755930063174,2.68,206.57,206.47,4.57178359]
[1755930063364,2.68,206.57,206.46,6.04115942]
[1755930063564,2.68,206.57,206.47,4.56997094]
[1755930063774,2.68,206.57,206.5,0.03115688]
[1755930065160,2.7,206.59,206.5,0.03115688]
[1755930065366,0.03342904,206.56,206.41,3.5723163]
[1755930065569,2.73342904,206.56,206.45,6.04115942]
[1755930065865,7.5433,206.56,206.46,9.51214996]
[1755930066065,2.7,206.56,206.47,4.66595792]
[1755930066274,2.7,206.56,206.46,4.8456]
[1755930066469,2.7,206.56,206.47,4.66397079]
[1755930066664,0.03661795,206.54,206.46,4.8456]
[1755930066864,0.03661795,206.54,206.47,4.66383336]
[1755930067070,0.03661795,206.54,206.46,4.8456]
[1755930067266,0.03661795,206.54,206.48,4.845]
[1755930067669,0.03661795,206.54,206.46,24.2281]
[1755930067867,0.03661795,206.54,206.47,4.66200357]
[1755930068064,0.03661795,206.54,206.44,6.04115942]
[1755930068264,0.03661795,206.54,206.45,4.66246961]
[1755930068466,0.03661795,206.54,206.48,6.04115942]
[1755930068662,0.03661795,206.54,206.49,4.66246961]
[1755930068868,2.7,206.57,206.48,6.04115942]
[1755930069166,0.03101572,206.54,206.49,9.50525556]
[1755930069463,0.03101572,206.54,206.48,6.04115942]
[1755930069670,0.03101572,206.54,206.51,4.8444]
[1755930070370,0.03101572,206.54,206.48,10.88605942]
[1755930070565,0.03101572,206.54,206.42,24.2328]
[1755930070766,0.03101572,206.54,206.43,15.51534438]
[1755930071069,2.73101572,206.54,206.45,4.8458]
[1755930071271,2.73101572,206.54,206.39,30.27705942]
[1755930071564,2.73101572,206.54,206.4,9.47398144]
[1755930071769,2.73101572,206.54,206.42,4.8463]
[1755930071770,4.8445,206.51,206.42,4.8463]
[1755930071969,2.7,206.5,206.39,6.04115942]
[1755930072169,2.7,206.48,206.35,6.04115942]
[1755930072370,2.7,206.48,206.36,9.47546463]
[1755930072570,4.8456,206.46,206.37,4.65811289]
[1755930072770,4.8456,206.46,206.36,4.8477]
[1755930073068,0.0358864,206.44,206.37,4.65860129]
[1755930073266,0.0358864,206.44,206.36,4.8477]
[1755930073465,0.0358864,206.44,206.37,4.65860883]
[1755930073661,0.0358864,206.44,206.36,4.8477]
[1755930074464,0.0358864,206.44,206.21,4.90298681]
[1755930074465,4.8466,206.42,206.31,4.8489]
[1755930074663,2.7,206.43,206.34,6.04115942]
[1755930074863,2.7,206.43,206.35,9.47644611]
[1755930075069,2.7,206.43,206.36,4.65869957]
[1755930075366,0.03244802,206.41,206.37,4.65869957]
[1755930075565,0.03244802,206.41,206.36,4.8479]
[1755930075768,4.8457,206.46,206.37,4.65880117]
[1755930075968,4.8457,206.46,206.36,4.8479]
[1755930076169,0.03617935,206.41,206.37,4.65880117]
[1755930076370,0.03617935,206.41,206.36,4.8479]
[1755930076669,0.03617935,206.41,206.37,4.65894926]
[1755930076865,0.03617935,206.41,206.36,4.8479]
[1755930077173,0.03617935,206.41,206.37,4.65894926]
[1755930077368,0.03617935,206.41,206.38,4.8475]
[1755930077769,0.03617935,206.41,206.39,4.65876708]
[1755930077970,0.03617935,206.41,206.38,4.8475]
[1755930078270,0.03617935,206.41,206.4,4.847]
[1755930078570,0.03617935,206.41,206.4,9.50574264]
[1755930081567,0.03617935,206.41,206.34,6.04115942]
[1755930081768,0.03617935,206.41,206.35,7.04733761]
[1755930081968,0.03617935,206.41,206.34,6.04115942]
[1755930082169,0.03617935,206.41,206.35,4.81841176]
[1755930082363,0.03617935,206.41,206.34,6.04115942]
[1755930082570,0.03617935,206.41,206.35,9.66664261]
[1755930082764,0.03617935,206.41,206.35,4.8482]
[1755930082971,0.03617935,206.41,206.34,6.04115942]
[1755930083167,0.03617935,206.41,206.38,4.8473]
[1755930084580,0.03617935,206.41,206.4,4.847]
[1755930088076,0.03617935,206.41,206.4,9.66681945]
[1755930088278,2.7,206.49,206.4,4.81981945]
[1755930088482,2.7,206.49,206.38,30.31204007]
[1755930088676,2.7,206.49,206.39,4.82090112]
[1755930088874,333.2038,206.54,206.44,4.8461]
[1755930089179,333.2038,206.54,206.42,6.04115942]
[1755930089373,7.5438,206.54,206.46,4.8456]
[1755930089681,2.7,206.59,206.47,0.03392427]
[1755930090179,4.8438,206.54,206.47,0.03392427]
[1755930090377,7.5438,206.54,206.47,0.03392427]
[1755930092382,2.7,206.54,206.46,2.37932427]
[1755930092581,0.03483125,206.53,206.46,2.37932427]
[1755930094186,0.03483125,206.53,206.32,9.6976]
[1755930094187,2.77,206.8,206.62,24.2094]
[1755930094377,2.77,206.8,206.63,11.24387729]
[1755930094680,6.04115942,206.75,206.64,9.45920948]
[1755930094878,24.1978,206.72,206.65,4.63125204]
[1755930095075,2.77,206.71,206.66,6.02205041]
[1755930095286,2.77,206.69,206.67,6.0225216]
[1755930095486,4.8401,206.7,206.68,6.0225216]
[1755930095778,4.841,206.66,206.57,2.53]
[1755930095982,2.4,206.65,206.58,5.79974709]
[1755930096179,2.4,206.65,206.52,2.53]
[1755930096381,2.4,206.65,206.53,6.80678753]
[1755930096581,2.4,206.65,206.59,0.03233363]
[1755930096777,2.4,206.63,206.59,0.03233363]
[1755930096982,2.77,206.63,206.52,0.06233363]
[1755930097183,2.80513477,206.63,206.53,2.27689484]
[1755930097382,2.80513477,206.63,206.54,2.27689484]
[1755930097585,2.77,206.63,206.55,2.27689484]
[1755930097784,2.77,206.63,206.47,10.88645942]
[1755930097986,2.77,206.63,206.48,6.69283762]
[1755930098182,7.6117,206.63,206.49,11.53763762]
[1755930098385,0.03548875,206.57,206.5,6.69283762]
[1755930098592,0.03548875,206.57,206.51,12.69013618]
[1755930098785,0.03548875,206.57,206.53,4.8438]
[1755930098980,0.03548875,206.57,206.55,2.53]
[1755930099184,0.03548875,206.57,206.56,4.80670674]
[1755930099891,2.77,206.68,206.56,4.80670674]
[1755930100189,2.77,206.68,206.57,2.27670674]
[1755930100392,2.77,206.68,206.58,2.27670674]
[1755930100594,2.77,206.68,206.59,2.27670674]
[1755930100894,2.77,206.68,206.6,2.27670674]
[1755930101093,2.77,206.68,206.61,2.27670674]
[1755930101391,2.77,206.66,206.61,0.03476037]
[1755930101595,133.59,206.66,206.51,2.53]
[1755930101796,2.77,206.66,206.53,2.53]
[1755930102098,2.77,206.66,206.54,6.63989921]
[1755930102395,2.77,206.66,206.55,2.27379331]
[1755930102591,2.77,206.66,206.53,8.57115942]
[1755930102592,2.77,206.66,206.56,2.27379331]
[1755930102786,2.77,206.66,206.53,8.57115942]
[1755930102787,2.77,206.71,206.57,9.15608705]
[1755930102992,0.03545802,206.63,206.58,6.62608705]
[1755930103192,0.03545802,206.63,206.61,2.53]
[1755930103395,0.03545802,206.63,206.62,2.27379331]
[1755930104792,0.03545802,206.63,206.62,4.80379331]
[1755930106988,0.03545802,206.63,206.62,9.61055362]
[1755930107992,0.03545802,206.63,206.62,14.45812326]
[1755930110694,0.03545802,206.63,206.62,14.4385283]
[1755930111090,0.03545802,206.63,206.62,11.9385283]
[1755930111396,0.03545802,206.63,206.62,11.93858692]
[1755930112692,2.80545802,206.63,206.62,7.06620122]
[1755930112891,3.28545802,206.63,206.47,24.2269]
[1755930113092,2.80545802,206.63,206.49,2.53]
[1755930113301,2.77,206.63,206.5,9.1783786]
[1755930113498,4.8424,206.6,206.51,4.84152724]
[1755930113703,0.0361035,206.58,206.52,4.84152724]
[1755930113895,0.0361035,206.58,206.53,7.37152724]
[1755930114098,0.0361035,206.58,206.54,4.84152724]
[1755930114301,2.77,206.59,206.53,2.53]
[1755930114601,2.77,206.59,206.54,4.84093719]
[1755930114602,0.03072285,206.58,206.54,4.84093719]
[1755930114903,0.03072285,206.58,206.55,4.84093719]
[1755930115097,0.03072285,206.58,206.53,2.53]
[1755930115297,0.03072285,206.58,206.55,2.53]
[1755930115502,0.03072285,206.58,206.57,2.53]
[1755930115702,0.03072285,206.58,206.57,7.37160786]
[1755930115904,24.2028,206.68,206.57,7.37160786]
[1755930115905,7.6089,206.75,206.63,4.8415]
[1755930116096,2.77,206.75,206.64,7.37160786]
[1755930116404,4.8393,206.73,206.65,4.84160786]
[1755930116700,4.8393,206.73,206.64,2.53]
[1755930116904,4.8393,206.73,206.65,4.83836682]
[1755930117106,4.8393,206.73,206.64,2.53]
[1755930117298,4.8393,206.73,206.66,0.03644142]
[1755930118502,24.1945,206.75,206.66,0.03644142]
[1755930118801,2.77,206.73,206.53,139.32195586]
[1755930119001,2.77,206.73,206.54,9.17223728]
[1755930119002,2.80562619,206.73,206.54,9.17223728]
[1755930119201,2.80562619,206.73,206.55,9.17223728]
[1755930119504,2.77,206.69,206.56,9.17322331]
[1755930119695,2.77,206.69,206.54,24.2184]
[1755930119893,7.6103,206.69,206.59,4.8424]
[1755930120097,0.03482856,206.65,206.6,4.83943725]
[1755930120405,0.03482856,206.65,206.61,4.83943725]
[1755930120606,0.03482856,206.65,206.62,4.83943725]
[1755930120803,2.77,206.64,206.56,6.2031]
[1755930121003,2.77,206.64,206.57,4.84082083]
[1755930121195,2.77,206.64,206.58,4.84082083]
[1755930121398,2.77,206.64,206.59,4.84082083]
[1755930121605,2.77,206.64,206.6,4.84082083]
[1755930121805,0.03482856,206.65,206.56,6.2031]
[1755930122105,0.03482856,206.65,206.57,4.65231272]
[1755930122298,0.03482856,206.65,206.56,6.2031]
[1755930122497,4.87602856,206.65,206.56,6.2031]
[1755930123001,0.03482856,206.65,206.56,6.2031]
[1755930123307,0.03482856,206.65,206.57,4.37253345]
[1755930123505,0.03482856,206.65,206.56,6.2031]
[1755930123703,0.03482856,206.65,206.57,4.37240403]
[1755930123904,0.03482856,206.65,206.56,6.1031]
[1755930124104,0.03482856,206.65,206.57,4.37246718]
[1755930124308,0.03482856,206.65,206.56,6.1031]
[1755930124505,0.03482856,206.65,206.57,4.37352676]
[1755930124807,0.03482856,206.65,206.58,16.19218397]
[1755930125008,0.03482856,206.65,206.59,6.97584324]
[1755930125307,4.8417,206.63,206.6,5.90584324]
[1755930125505,2.66,206.62,206.61,3.55537839]
[1755930127907,2.66,206.62,206.53,1.26]
[1755930128110,0.03134165,206.64,206.56,6.1031]
[1755930128304,137.3608,206.67,206.56,6.1031]
[1755930128808,0.0355633,206.62,206.56,6.1031]
[1755930129406,0.0355633,206.62,206.58,4.8428]
[1755930129601,0.0355633,206.62,206.6,1.26]
[1755930129806,0.0355633,206.62,206.61,1.26]
[1755930131215,0.0355633,206.62,206.61,5.61656491]
[1755930131606,325.48,206.71,206.61,5.61656491]
[1755930131607,2.66,206.7,206.61,5.61656491]
[1755930131807,2.66,206.7,206.61,1.26]
[1755930132007,2.66,206.7,206.62,4.35664026]
[1755930132211,2.66,206.7,206.61,1.26]
[1755930132212,325.48,206.71,206.63,4.35664026]
[1755930132508,325.48,206.71,206.64,4.35664026]
[1755930132714,325.48,206.71,206.63,4.8414]
[1755930133010,325.48,206.71,206.65,0.03288767]
[1755930134111,325.48,206.71,206.66,4.88036257]
[1755930134313,2.66,206.69,206.67,4.88036257]
[1755930134514,2.66,206.68,206.52,23.01358767]
[1755930134711,2.66,206.68,206.53,4.35094599]
[1755930134912,2.66,206.68,206.54,4.35094599]
[1755930135111,2.66,206.68,206.55,4.35094599]
[1755930135310,2.66,206.68,206.56,4.35094599]
[1755930135609,4.8414,206.64,206.57,4.35094599]
[1755930135811,4.8414,206.64,206.58,4.35094599]
[1755930136012,4.87225148,206.64,206.55,4.8435]
[1755930136211,4.87225148,206.64,206.56,4.29222218]
[1755930136413,4.87225148,206.64,206.57,4.29222218]
[1755930136617,4.87225148,206.64,206.58,4.29222218]
[1755930136814,2.69085148,206.64,206.52,4.844]
[1755930137016,2.69085148,206.64,206.53,4.29513374]
[1755930137219,2.69085148,206.64,206.5,2.53]
[1755930137220,2.69085148,206.64,206.54,6.49524688]
[1755930137414,4.8429,206.58,206.55,2.19705094]
[1755930137617,2.66,206.57,206.56,6.97539221]
[1755930137820,0.03664646,206.61,206.56,6.97764122]
[1755930138025,0.03664646,206.61,206.57,6.97764122]
[1755930138323,2.69664646,206.61,206.58,6.97764122]
[1755930138517,2.69664646,206.61,206.59,6.97764122]
[1755930138722,0.03664646,206.61,206.6,6.97764122]
[1755930140615,0.03664646,206.61,206.54,2.53]
[1755930140817,0.03664646,206.61,206.55,11.20195948]
[1755930141019,0.03664646,206.61,206.57,2.53]
[1755930141315,2.66,206.6,206.58,6.98252824]
[1755930141518,2.66,206.6,206.59,5.64252824]
[1755930141723,7.5026,206.6,206.59,5.64252824]
[1755930142320,7.5026,206.6,206.59,4.48252824]
[1755930143926,4.8438,206.54,206.47,0.03]
[1755930144120,24.217,206.56,206.47,0.03]
[1755930144324,131.5,206.57,206.41,4.8466]
[1755930144522,4.8443,206.52,206.42,4.2060417]
[1755930144725,4.8443,206.52,206.43,4.2060417]
[1755930144927,4.8443,206.52,206.44,4.2060417]
[1755930145127,4.8443,206.52,206.41,4.8466]
[1755930145326,4.8443,206.52,206.42,4.20381816]
[1755930145532,0.03310404,206.5,206.43,4.20381816]
[1755930145830,0.03310404,206.5,206.41,4.8466]
[1755930146025,0.03310404,206.5,206.42,6.5835212]
[1755930146225,0.03310404,206.5,206.42,2.38]
[1755930146425,0.03310404,206.5,206.43,4.72156539]
[1755930146631,0.03310404,206.5,206.44,4.72156539]
[1755930146932,0.03310404,206.5,206.45,7.10156539]
[1755930147124,0.03310404,206.5,206.46,4.72156539]
[1755930147321,0.03310404,206.5,206.47,4.72156539]
[1755930147635,4.87780404,206.5,206.48,4.72156539]
[1755930147927,4.87780404,206.5,206.49,2.22156539]
[1755930148433,0.03310404,206.5,206.46,4.8456]
[1755930148731,0.03310404,206.5,206.49,2.38]
[1755930150829,4.843,206.58,206.49,2.38]
[1755930151030,4.843,206.58,206.49,7.2247]
[1755930151935,4.843,206.58,206.51,4.8445]
[1755930152135,2.66,206.6,206.51,4.88011272]
[1755930153935,7.5026,206.6,206.51,4.88011272]
[1755930154337,2.66,206.6,206.52,2.14092945]
[1755930154538,2.66,206.6,206.53,2.14092945]
[1755930154737,2.66,206.6,206.54,2.14092945]
[1755930154939,2.66,206.6,206.51,4.88011272]
[1755930155240,2.66,206.6,206.52,2.14092945]
[1755930155441,2.66,206.6,206.52,1.77092945]
[1755930155639,4.8428,206.59,206.51,4.88011272]
[1755930155840,4.8428,206.59,206.51,2.75011272]
[1755930156042,4.8428,206.59,206.52,4.72801057]
[1755930156341,4.8428,206.59,206.53,4.72801057]
[1755930156540,4.8428,206.59,206.51,2.75011272]
[1755930156541,2.68,206.58,206.54,4.72801057]
[1755930156835,4.8428,206.59,206.55,4.72801057]
[1755930157042,2.68,206.52,206.39,24.2365]
[1755930157241,128.56,206.55,206.4,13.709258]
[1755930157541,4.8438,206.54,206.45,4.8458]
[1755930157738,128.56,206.55,206.45,4.8458]
[1755930157934,128.56,206.55,206.4,9.54195586]
[1755930158133,2.68,206.54,206.4,9.54195586]
[1755930158334,4.8447,206.51,206.39,6.03919605]
[1755930158530,0.0337358,206.5,206.39,6.03919605]
[1755930158734,0.0337358,206.5,206.39,3.65919605]
[1755930159138,4.845,206.49,206.4,2.68]
[1755930159337,2.7137358,206.5,206.4,2.68]
[1755930159939,2.7137358,206.5,206.41,4.56887328]
[1755930160242,24.2249,206.49,206.35,6.03919605]
[1755930160441,24.2249,206.49,206.36,4.56743542]
[1755930160643,24.2249,206.49,206.37,4.56743542]
[1755930160842,24.2249,206.49,206.38,4.56743542]
[1755930161137,0.03377248,206.45,206.39,4.56743542]
[1755930161344,0.03377248,206.45,206.4,4.56743542]
[1755930161543,4.8463,206.44,206.36,2.8]
[1755930161738,4.8463,206.44,206.37,3.87578001]
[1755930161950,4.8463,206.44,206.36,2.8]
[1755930162239,4.8463,206.44,206.31,4.849]
[1755930162240,4.8466,206.42,206.31,4.849]
[1755930162444,4.8466,206.42,206.32,4.14782748]
[1755930162643,4.8466,206.42,206.31,4.849]
[1755930163038,0.03393058,206.39,206.33,4.8487]
[1755930164039,0.03393058,206.39,206.33,7.6487]
[1755930165243,0.03393058,206.39,206.33,7.3587]
[1755930165539,0.03393058,206.39,206.35,4.8481]
[1755930166048,0.03393058,206.39,206.35,3.0081]
[1755930166442,0.03393058,206.39,206.37,2.8]
[1755930167245,0.03393058,206.39,206.33,2.8]
[1755930167449,2.68,206.38,206.34,2.12599789]
[1755930167647,2.68,206.38,206.28,2.8]
[1755930167648,2.68,206.38,206.35,2.12599789]
[1755930167846,2.68,206.38,206.3,4.8493]
[1755930168046,2.71129209,206.38,206.31,2.12641673]
[1755930168245,2.71129209,206.38,206.32,2.12641673]
[1755930168549,0.03129209,206.38,206.34,2.8]
[1755930168748,0.03129209,206.38,206.35,2.12641673]
[1755930168944,7.5264,206.43,206.36,4.65050421]
[1755930169248,2.68,206.4,206.37,4.65050421]
[1755930169448,0.0340852,206.39,206.38,4.24050421]
[1755930171049,0.0340852,206.39,206.38,3.86050421]
[1755930171644,0.0340852,206.39,206.38,5.98306851]
[1755930172046,0.0340852,206.39,206.38,3.86050421]
[1755930174044,0.0340852,206.39,206.35,1.09]
[1755930174251,0.0340852,206.39,206.36,3.21178515]
[1755930174544,0.0340852,206.39,206.37,2.12178515]
[1755930174752,0.0340852,206.39,206.38,3.21149859]
[1755930176953,2.68,206.5,206.38,7.74711289]
[1755930177253,131.3,206.5,206.39,2.12149859]
[1755930177448,131.3,206.5,206.4,2.12149859]
[1755930177640,131.3,206.5,206.41,2.12149859]
[1755930177846,131.3,206.5,206.38,1.09]
[1755930178041,131.3,206.5,206.39,2.12277897]
[1755930178246,131.3,206.5,206.4,2.12277897]
[1755930178447,131.3,206.5,206.42,0.03339861]
[1755930178646,7.5256,206.46,206.42,0.03339861]
[1755930178846,7.5256,206.46,206.43,2.12387023]
[1755930179052,7.5256,206.46,206.42,0.03339861]
[1755930179249,2.68,206.45,206.42,0.03339861]
[1755930179553,2.68,206.45,206.38,0.74865671]
[1755930179756,2.68,206.45,206.39,4.5431867]
[1755930180052,2.68,206.45,206.4,4.5431867]
[1755930180248,2.68,206.45,206.38,0.74865671]
[1755930180450,2.68,206.45,206.39,4.54443329]
[1755930180652,2.68,206.45,206.4,4.54443329]
[1755930180848,2.68,206.45,206.41,4.54439444]
[1755930181057,4.87653197,206.46,206.38,4.8475]
[1755930181353,4.87653197,206.46,206.39,4.54413655]
[1755930181553,4.87653197,206.46,206.4,4.54413655]
[1755930181754,7.55653197,206.46,206.41,4.54413655]
[1755930182053,7.55653197,206.46,206.38,5.5975]
[1755930182255,7.55653197,206.46,206.39,4.54660404]
[1755930182444,7.55653197,206.46,206.4,4.54660404]
[1755930182648,7.55653197,206.46,206.38,5.5975]
[1755930182942,7.55653197,206.46,206.39,9.19078941]
[1755930183147,7.55653197,206.46,206.4,9.19078941]
[1755930183351,2.63,206.45,206.41,4.64395644]
[1755930183546,2.63,206.45,206.42,4.64395644]
[1755930183749,2.63,206.44,206.43,4.60987124]
[1755930185356,2.63,206.44,206.43,2.10987124]
[1755930188958,4.8469,206.41,206.33,0.36987124]
[1755930189162,4.8469,206.41,206.34,4.5501563]
[1755930189359,4.8469,206.41,206.35,4.5501563]
[1755930189657,0.03699121,206.4,206.36,4.5501563]
[1755930189845,0.03699121,206.4,206.37,4.5501563]
[1755930190049,0.03699121,206.4,206.38,4.55016712]
[1755930190252,0.03699121,206.4,206.32,4.8487]
[1755930190450,0.03699121,206.4,206.3,6.04155631]